Workbook

Sheet BExRepositorySheet (hidden)
A1: 7
C14: Filter

Sheet Table (hidden)
F1: Estado de Situacion Financiera Det A
H2: Autor | I2: ADVJYNOQUIO | K2: Actualidad de datos | L2: 25/01/2022 14:24:31
G5: Information
G6: Autor | H6: ADVJYNOQUIO | J6: Últ.actual.pantalla | K6: 18/04/2022 10:13:39
G7: Usuario actual | H7: GRPMJRIOS | J7: Fe.clave | K7: 18/04/2022
G8: Modificado por | H8: ADVIVIEYRA | J8: Hora de modificación | K8: 07/05/2020 10:37:04
G9: InfoSitio | H9: ZVRL_MP02 | J9: Actualidad de datos | K9: 25/01/2022 14:24:31
G10: Nombre técnico query | H10: ZFI_VRL_MP02_Q008A | J10: Actualidad datos (fecha) | K10: 25/01/2022
G11: Descripción query | H11: Estado de Situacion Financiera Det A | J11: Actualidad datos (fecha) | K11: 14:24:31
C14: Filter | G14: Table
C15: Área funcional | H15: Saldo Actual (ORIGINAL) | I15: Saldo Anterior (ORIGINAL) | J15: Saldo Actual (NUEVO) | K15: Saldo Anterior (NUEVO) | L15: Saldo acumulado
C16: Centro de beneficio | G16: Activo | H16: 0 | I16: 0 | J16: 0 | K16: 0 | L16: 0
C17: Centro de coste | G17: Activo Circulante | H17: 0 | I17: 0 | J17: 0 | K17: 0 | L17: 0
C18: Cuenta de mayor | G18: a. Efectivo y Equivalentes | H18: 0 | I18: 0 | J18: 6516071204 | K18: 2227797176 | L18: 5962711562
C19: Ejercicio/Período | G19: a1) Efectivo | H19: 0 | I19: 0 | J19: 690947579.4 | K19: 315570440.3 | L19: 2392582905
C20: Ejercicio | G20: a2) Bancos/Tesorería | H20: 0 | I20: 0 | J20: 4935363303 | K20: 1075201313 | L20: 2643967044
C21: Estruct. | G21: a3) Bancos/Dependencias y Otros | H21: 0 | I21: 0
C22: InfoSitio | G22: a4) Inversiones Temporales (Hasta 3 meses) | H22: 0 | I22: 0 | J22: 11166349.01 | K22: 424249102.8 | L22: 424249102.8
C23: Período contable | G23: a5) Fondos con Afectación Específica | H23: 0 | I23: 0 | J23: 878564966.7 | K23: 412747313.9 | L23: 501883504
C24: Ratios | G24: a6) Depósitos de Fondos de Terceros en Garantía y/o | H24: 0 | I24: 0
G25: a7) Otros Efectivos y Equivalentes | H25: 0 | I25: 0 | J25: 29006 | K25: 29006 | L25: 29006
G26: b. Derechos a Recibir Efectivo o Equivalentes | H26: 0 | I26: 0 | J26: 3817278828 | K26: 1450496828 | L26: 918824573.5
G27: b1) Inversiones Financieras de Corto Plazo | H27: 0 | I27: 0 | J27: -0.05 | K27: -0.05 | L27: -0.05
G28: b2) Cuentas por Cobrar a Corto Plazo | H28: 0 | I28: 0 | J28: 39490.47 | K28: 39490.47 | L28: 779707622.2
G29: b3) Deudores Diversos por Cobrar a Corto Plazo | H29: 0 | I29: 0 | J29: 2935092239 | K29: 682112288 | L29: -715364823.6
G30: b4) Ingresos por Recuperar a Corto Plazo | H30: 0 | I30: 0 | J30: 1686.79 | K30: 35016.93 | L30: -60138.52
G31: b5) Deudores por Anticipos de la Tesorería a Corto Plazo | H31: 0 | I31: 0 | J31: 39012903.55 | K31: 38201343.57 | L31: 45007919.29
G32: b6) Préstamos Otorgados a Corto Plazo | H32: 0 | I32: 0 | J32: 47062228.3 | K32: 47996401.3 | L32: 47996401.3
G33: b7) Otros Derechos a Recibir Efectivo o Equivalentes a C | H33: 0 | I33: 0 | J33: 796070279.4 | K33: 682112287.8 | L33: 761537592.8
G34: c. Derechos a Recibir Bienes o Servicios | H34: 0 | I34: 0 | J34: 461855557 | K34: 318860347.3 | L34: 316062871.9
G35: c1) Anticipo a Proveedores por Adquisición de Bienes y | H35: 0 | I35: 0
G36: c2) Anticipo a Proveedores por Adquisición de Bienes Inm | H36: 0 | I36: 0
G37: c3) Anticipo a Proveedores por Adquisición de Bienes Int | H37: 0 | I37: 0
G38: c4) Anticipo a Contratistas por Obras Públicas a Corto P | H38: 0 | I38: 0 | J38: 461855557 | K38: 318860347.3 | L38: 316062871.9
G39: c5) Otros Derechos a Recibir Bienes o Servicios a Corto | H39: 0 | I39: 0
G40: d. Inventarios | H40: 0 | I40: 0
G41: d1) Inventario de Mercancías para Venta | H41: 0 | I41: 0
G42: d2) Inventario de Mercancías Terminadas | H42: 0 | I42: 0
G43: d3) Inventario de Mercancías en Proceso de Elaboración | H43: 0 | I43: 0
G44: d4) Inventario de Materias Primas, Materiales y Suminist | H44: 0 | I44: 0
G45: d5) Bienes en Tránsito | H45: 0 | I45: 0
G46: e. Almacenes | H46: 0 | I46: 0 | J46: 614872.34 | K46: 582533.62 | L46: 582533.62
G47: f. Estimación por Pérdida o Deterioro de Activos Circ. | H47: 0 | I47: 0
G48: f1) Estimaciones para Cuentas Incobrables por Derechos a | H48: 0 | I48: 0
G49: f2) Estimación por Deterioro de Inventarios | H49: 0 | I49: 0
G50: g. Otros Activos Circulantes | H50: 0 | I50: 0 | J50: 18899998.01 | K50: 0 | L50: 0
G51: g1) Valores en Garantía | H51: 0 | I51: 0 | J51: 18899998.01 | K51: 0 | L51: 0
G52: g2) Bienes en Garantía (excluye depósitos de fondos) | H52: 0 | I52: 0
G53: g3) Bienes Derivados de Embargos, Decomisos, Aseguramien | H53: 0 | I53: 0
G54: g4) Adquisición con Fondos de Terceros | H54: 0 | I54: 0
G55: IA. Total de Activos Circulantes | H55: 0 | I55: 0 | J55: 1.081472046e+10 | K55: 3997736885 | L55: 7198181541
G56: Activo No Circulante | H56: 0 | I56: 0 | J56: 0 | K56: 0 | L56: 0
G57: a. Inversiones Financieras a Largo Plazo | H57: 0 | I57: 0 | J57: 2.358979443e+10 | K57: 2.467491368e+10 | L57: 24660997974
G58: b. Derechos a Recibir Efectivo o Equivalentes a LP | H58: 0 | I58: 0 | J58: 180010314.5 | K58: 180010314.5 | L58: 180010314.5
G59: c. Bienes Inmuebles, Infra. y Construcc. en Proceso | H59: 0 | I59: 0 | J59: 1.627126443e+10 | K59: 1.875022186e+10 | L59: 1.875022186e+10
G60: d. Bienes Muebles | H60: 0 | I60: 0 | J60: 2999763599 | K60: 3136449692 | L60: 3136534860
G61: e. Activos Intangibles | H61: 0 | I61: 0 | J61: 125823150.5 | K61: 137079404.2 | L61: 137079404.2
G62: f. Depreciación, Deterioro y Amort. Acum. de Bien | H62: 0 | I62: 0 | J62: -1103599441 | K62: -1117944837 | L62: -1131190122
G63: g. Activos Diferidos | H63: 0 | I63: 0 | J63: 32457644.67 | K63: 32457644.67 | L63: 32457644.67
G64: h. Estimación por Pérdida o Det. de Activos no Circulant | H64: 0 | I64: 0
G65: i. Otros Activos no Circulantes | H65: 0 | I65: 0
G66: IB. Total de Activos No Circulantes | H66: 0 | I66: 0 | J66: 4.209551412e+10 | K66: 4.579318776e+10 | L66: 4.576611193e+10
G67: I. Total del Activo | H67: 0 | I67: 0 | J67: 5.291023458e+10 | K67: 4.979092464e+10 | L67: 5.296429347e+10

Sheet Sheet1 (hidden)
G14: Table
H15: Saldo Actual (ORIGINAL) | I15: Saldo Anterior (ORIGINAL) | J15: Saldo Actual (NUEVO) | K15: Saldo Anterior (NUEVO) | L15: Saldo acumulado
G16: Pasivo | L16: 0
G17: Pasivo Circulante | L17: 0
G18: a. Cuentas por Pagar a Corto Plazo | H18: 0 | I18: 0 | J18: 6057384846 | K18: 4822360379 | L18: -9194590873
G19: a1) Servicios Personales por Pagar a Corto Plazo | H19: 0 | I19: 0 | J19: 885523896 | K19: 575473440.4 | L19: -3683689622
G20: a2) Proveedores por Pagar a Corto Plazo | H20: 0 | I20: 0 | J20: 407860016.2 | K20: 1031669914 | L20: -1122227751
G21: a3) Contratistas por Obras Públicas por Pagar a Corto Pl | H21: 0 | I21: 0 | J21: 119350985.5 | K21: 58032388.35 | L21: -51170180.11
G22: a4) Participaciones y Aportaciones por Pagar a Corto Pla | H22: 0 | I22: 0 | J22: 70099073.76 | K22: 69455911.52 | L22: -435146536.5
G23: a5) Transferencias Otorgadas por Pagar a Corto Plazo | H23: 0 | I23: 0 | J23: 1808091547 | K23: 945130300.9 | L23: -1341326895
G24: a6) Intereses, Comisiones y Otros Gastos de la Deuda Púb | H24: 0 | I24: 0 | J24: 15409518.93 | K24: 4620052.11 | L24: -24586365.58
G25: a7) Retenciones y Contribuciones por Pagar a Corto Plazo | H25: 0 | I25: 0 | J25: 2075124125 | K25: 2126099629 | L25: -2436874001
G26: a8) Devoluciones de la Ley de Ingresos por Pagar a Corto | H26: 0 | I26: 0 | J26: -604784.49 | K26: 334238.95 | L26: -869356.13
G27: a9) Otras Cuentas por Pagar a Corto Plazo | H27: 0 | I27: 0 | J27: 676530468.3 | K27: 11544504.5 | L27: -98700165.72
G28: b. Documentos por Pagar a Corto Plazo | H28: 0 | I28: 0 | J28: 1164000000 | K28: 2732000000 | L28: -1088888890
G29: b1) Documentos Comerciales por Pagar a Corto Plazo | H29: 0 | I29: 0 | J29: 1164000000 | K29: 2732000000 | L29: -1088888890
G30: b2) Documentos con Contratistas por Obras Públicas por P | H30: 0 | I30: 0
G31: b3) Otros Documentos por Pagar a Corto Plazo | H31: 0 | I31: 0
G32: c. Porción a Corto Plazo de la Deuda Pública | H32: 0 | I32: 0 | J32: 529810506.9 | K32: 614280699.4 | L32: -515175672.5
G33: c1) Porción a Corto Plazo de la Deuda Pública | H33: 0 | I33: 0 | J33: 529810506.9 | K33: 614280699.4 | L33: -515175672.5
G34: c2) Porción a Corto Plazo de Arrendamiento Financiero | H34: 0 | I34: 0
G35: d. Títulos y Valores a Corto Plazo | H35: 0 | I35: 0
G36: e. Pasivos Diferidos a Corto Plazo | H36: 0 | I36: 0
G37: e1) Ingresos Cobrados por Adelantado a Corto Plazo | H37: 0 | I37: 0
G38: e2) Intereses Cobrados por Adelantado a Corto Plazo | H38: 0 | I38: 0
G39: e3) Otros Pasivos Diferidos a Corto Plazo | H39: 0 | I39: 0
G40: f. Fondos y Bienes de Terceros en Garantía | H40: 0 | I40: 0 | J40: 231751083.6 | K40: 225197034 | L40: -219825032.1
G41: f1) Fondos en Garantía a Corto Plazo | H41: 0 | I41: 0 | J41: 11964477.58 | K41: 13646383.58 | L41: -13650343.58
G42: f2) Fondos en Administración a Corto Plazo | H42: 0 | I42: 0 | J42: 219786606 | K42: 211550650.4 | L42: -206174688.5
G43: f3) Fondos Contingentes a Corto Plazo | H43: 0 | I43: 0
G44: f4) Fondos de Fideicomisos, Mandatos y Contratos Análogo | H44: 0 | I44: 0
G45: f5) Otros Fondos de Terceros en Garantía y/o Administrac | H45: 0 | I45: 0
G46: f6) Valores y Bienes en Garantía a Corto Plazo | H46: 0 | I46: 0
G47: g. Provisiones a Corto Plazo | H47: 0 | I47: 0
G48: g1) Provisión para Demandas y Juicios a Corto Plazo | H48: 0 | I48: 0
G49: g2) Provisión para Contingencias a Corto Plazo | H49: 0 | I49: 0
G50: g3) Otras Provisiones a Corto Plazo | H50: 0 | I50: 0
G51: h. Otros Pasivos a Corto Plazo | H51: 0 | I51: 0 | J51: -626881225 | K51: 595184227.9 | L51: 672463756.8
G52: h1) Ingresos por Clasificar | H52: 0 | I52: 0 | J52: 2611013.15 | K52: 2800125.72 | L52: -2800125.72
G53: h2) Recaudación por Participar | H53: 0 | I53: 0 | J53: -782900195.5 | K53: 453192912.7 | L53: 821911324.4
G54: h3) Otros Pasivos Circulantes | H54: 0 | I54: 0 | J54: 153407957.4 | K54: 139191189.5 | L54: -146647441.9
G55: IIA. Total de Pasivos Circulantes | H55: 0 | I55: 0 | J55: 7356065212 | K55: 8989022340 | L55: -1.034601671e+10
G56: Pasivo No Circulante | L56: 0
G57: a. Cuentas por Pagar a Largo Plazo | H57: 0 | I57: 0 | J57: 0 | K57: 0 | L57: 0
G58: b. Documentos por Pagar a Largo Plazo | H58: 0 | I58: 0
G59: c. Deuda Pública a Largo Plazo | H59: 0 | I59: 0 | J59: 1.987425115e+10 | K59: 1.925997044e+10 | L59: -1.925997044e+10
G60: d. Pasivos Diferidos a Largo Plazo | H60: 0 | I60: 0
G61: e. Fondos y Bienes de Terceros en Garantía | H61: 0 | I61: 0
G62: f. Provisiones a Largo Plazo | H62: 0 | I62: 0
G63: IIB. Total de Pasivos No Circulantes | H63: 0 | I63: 0 | J63: 1.987425115e+10 | K63: 1.925997044e+10 | L63: -1.925997044e+10
G64: II. Total del Pasivo | H64: 0 | I64: 0 | J64: 2.723031636e+10 | K64: 2.824899278e+10 | L64: -2.960598715e+10
G65: Hacienda Pública/Patrimonio | L65: 0
G66: IIIA. Hacienda Pública/Patrimonio Contribuido | H66: 0 | I66: 0 | J66: 3.417986323e+10 | K66: 3.470370204e+10 | L66: -3.470370204e+10
G67: Aportaciones | H67: 0 | I67: 0 | J67: 3.417428867e+10 | K67: 3.469453052e+10 | L67: -3.469453052e+10
G68: Donaciones de Capital | H68: 0 | I68: 0
G69: Actualización de la Hacienda Pública/Pa | H69: 0 | I69: 0 | J69: 5574555.35 | K69: 9171517.96 | L69: -9171517.96
G70: IIIB. Hacienda Pública/Patrimonio Generado | H70: 0 | I70: 0 | J70: 8596826475 | K70: 7765410596 | L70: -1.045193256e+10
G71: Resultados del Ejercicio (Ahorro/ Desahorro) | H71: 0 | I71: 0 | J71: 1889089344 | K71: 1057673465 | L71: -2686521960
G72: Resultados de Ejercicios Anteriores | H72: 0 | I72: 0 | J72: 6707737131 | K72: 6707737131 | L72: -7765410596
G73: Revalúos | H73: 0 | I73: 0
G74: Reservas | H74: 0 | I74: 0
G75: Rectificaciones de Resultados de Ejercicios Anteriores | H75: 0 | I75: 0 | J75: -1.709677149e+10 | K75: -2.092718077e+10 | L75: 2.179732827e+10
G76: IIIC. Exceso o Insuficiencia en la Actualización de la Hac | H76: 0 | I76: 0
G77: Resultado por Tenencia de Activos no Monetarios | H77: 0 | I77: 0
G78: Resultado por Tenencia de Activos no Mo | H78: 0 | I78: 0
G79: III. Total Hacienda Pública/Patrimonio | H79: 0 | I79: 0 | J79: 4.27766897e+10 | K79: 4.246911264e+10 | L79: -4.51556346e+10
G80: IV. Total del Pasivo y Hacienda Pública/Patrimonio | H80: 0 | I80: 0 | J80: 7.000700607e+10 | K80: 7.071810541e+10 | L80: -7.476162174e+10

Sheet Estado Situacion Financiera Det
A1: 2018 | B1: 1..12 | D1: Gob del Edo de Michoacán | E1: 16/10/2018 | F1: Selección vacía | G1: 12 | H1: Enero | J1: 1 | K1: 2018-12-31 | L1: 31 | S1: 12 | T1: 2017 | U1: 1..12 | V1: 4to Trimestre 2018 | W1: 4to Trimestre 2017 | X1: 12
U2: 1..12
B3: GOBIERNO DEL ESTADO DE MICHOACÁN DE OCAMPO | K3: H | M3: 001.2021
B4: Estado de Situación Financiera Detallado - LDF | K4: L | M4: 016.2021 | T4: Actual | U4: 12 | V4: 12 | W4: Diciembre | X4: 1 | Y4: Enero
B5: Al 31 de Diciembre del 2021 y al 31 de Diciembre del 2020 | M5: 25/01/2022 | T5: Anterior | U5: 12 | V5: 12 | W5: Diciembre | X5: 2 | Y5: Febrero
B6: (Pesos) | K6: L | M6: =MID(M4,2,2) -> 16 | N6: =VALUE(M6) -> 16 | O6: =VLOOKUP(N6,$R$6:$S$21,2,0) -> Diciembre | R6: =VALUE(1) -> 1 | S6: Enero | T6: =MID(T4,2,2) -> ct | X6: 5 | Y6: Mayo
B7: Concepto (c) | C7: Diciembre 2021 | D7: Diciembre. 2020 | E7: Concepto (c) | F7: Diciembre 2021 | G7: Diciembre. 2020 | K7: DIA CONSULTA | M7: =MID(M5,1,2) -> 25 | N7: 25 | R7: =VALUE(2) -> 2 | S7: Febrero | T7: =MID(T5,1,2) -> An | X7: 6 | Y7: Junio
B8: ACTIVO | E8: PASIVO | K8: MES CONSULTA | M8: =MID(M5,4,2) -> 01 | N8: 1 | O8: =VLOOKUP(N8,R6:S17,2,0) -> Enero | R8: =VALUE(3) -> 3 | S8: Marzo | T8: =MID(T5,4,2) -> er | X8: 7 | Y8: Julio
B9: Activo Circulante | E9: Pasivo Circulante | K9: AÑO CONSULTA | M9: =MID(M3,5,4) -> 2021 | N9: 2021 | R9: =VALUE(4) -> 4 | S9: Abril | T9: =MID(T5,7,4) -> or | X9: 8 | Y9: Agosto
B10: a. Efectivo y Equivalentes (a=a1+a2+a3+a4+a5+a6+a7) | C10: =SUM(C11:C17) -> 2227797176 | D10: =SUM(D11:D17) -> 5459137507 | E10: a. Cuentas por Pagar a Corto Plazo (a=a1+a2+a3+a4+a5+a6+a7+a8+a9) | F10: =SUM(F11:F19) -> 4846726152 | G10: =SUM(G11:G19) -> 5454330933 | M10: =MID(M4,5,4) -> 2021 | N10: 2021 | R10: =VALUE(5) -> 5 | S10: Mayo | X10: 9 | Y10: Septiembre
B11: a1) Efectivo | C11: 315570440.3 | D11: 4637341 | E11: a1) Servicios Personales por Pagar a Corto Plazo | F11: 575473440.4 | G11: 459734416 | R11: =VALUE(6) -> 6 | S11: Junio | X11: 10 | Y11: Octubre
B12: a2) Bancos/Tesorería | C12: 1075201313 | D12: 4067212273 | E12: a2) Proveedores por Pagar a Corto Plazo | F12: 1056035687 | G12: 459784135 | K12: AÑO LOW | M12: =MID(M4,5,4) -> 2021 | R12: =VALUE(7) -> 7 | S12: Julio | T12: =MID(T4,5,4) -> al | X12: 11 | Y12: Noviembre
B13: a3) Bancos/Dependencias y Otros | C13: 0 | D13: 0 | E13: a3) Contratistas por Obras Públicas por Pagar a Corto Plazo | F13: 58032388.35 | G13: 212508864 | K13: AÑO HIGH | M13: =MID(M3,5,4) -> 2021 | R13: =VALUE(8) -> 8 | S13: Agosto | T13: =MID(T3,5,4) ->  | X13: 12 | Y13: Diciembre
B14: a4) Inversiones Temporales (Hasta 3 meses) | C14: 424249102.8 | D14: 11166349 | E14: a4) Participaciones y Aportaciones por Pagar a Corto Plazo | F14: 69455911.52 | G14: 70287166 | R14: =VALUE(9) -> 9 | S14: Septiembre
B15: a5) Fondos con Afectación Específica | C15: 412747313.9 | D15: 1376092538 | E15: a5) Transferencias Otorgadas por Pagar a Corto Plazo | F15: 945130300.9 | G15: 1906522219 | R15: =VALUE(10) -> 10 | S15: Octubre
B16: a6) Depósitos de Fondos de Terceros en Garantía y/o Administración | C16: 0 | D16: 0 | E16: a6) Intereses, Comisiones y Otros Gastos de la Deuda Pública por Pagar a Corto Plazo | F16: 4620052.11 | G16: 15409420 | K16: =EOMONTH(K15,0) ->  | M16: =EOMONTH(M15,0) ->  | R16: =VALUE(11) -> 11 | S16: Noviembre
B17: a7) Otros Efectivos y Equivalentes | C17: 29006 | D17: 29006 | E17: a7) Retenciones y Contribuciones por Pagar a Corto Plazo | F17: 2126099629 | G17: 2330084713 | R17: =VALUE(12) -> 12 | S17: Diciembre
B18: b. Derechos a Recibir Efectivo o Equivalentes (b=b1+b2+b3+b4+b5+b6+b7) | C18: =SUM(C19:C25) -> 1450496828 | D18: =SUM(D19:D25) -> 3131463044 | E18: a8) Devoluciones de la Ley de Ingresos por Pagar a Corto Plazo | F18: 334238.95 | G18: 0 | K18: =CONCATENATE("01/",IF(OR(M6="13",M6="14",M6="15",M6="16"),"12",M6),"/",M12) -> 01/12/2021 | R18: 13 | S18: Diciembre
B19: b1) Inversiones Financieras de Corto Plazo | C19: -0.05 | D19: 0 | E19: a9) Otras Cuentas por Pagar a Corto Plazo | F19: 11544504.5 | G19: 0 | K19: =EOMONTH(K18,0) -> 2021-12-31 | R19: 14 | S19: Diciembre
B20: b2) Cuentas por Cobrar a Corto Plazo | C20: 39490.47 | D20: 39490 | E20: b. Documentos por Pagar a Corto Plazo (b=b1+b2+b3) | F20: =SUM(F21:F23) -> 2732000000 | G20: =SUM(G21:G23) -> 1164000000 | R20: 15 | S20: Diciembre
B21: b3) Deudores Diversos por Cobrar a Corto Plazo | C21: 682112288 | D21: 2246326759 | E21: b1) Documentos Comerciales por Pagar a Corto Plazo | F21: 2732000000 | G21: 1164000000 | K21: =TEXT(K16,"dd") ->  | M21: =TEXT(M16,"dd") ->  | R21: 16 | S21: Diciembre
B22: b4) Ingresos por Recuperar a Corto Plazo | C22: 35016.93 | D22: 1687 | E22: b2) Documentos con Contratistas por Obras Públicas por Pagar a Corto Plazo | F22: 0 | G22: 0 | K22: =TEXT(K19,"dd") -> 31
B23: b5) Deudores por Anticipos de la Tesorería a Corto Plazo | C23: 38201343.57 | D23: 38312904 | E23: b3) Otros Documentos por Pagar a Corto Plazo | F23: 0 | G23: 0
B24: b6) Préstamos Otorgados a Corto Plazo | C24: 47996401.3 | D24: 47149644 | E24: c. Porción a Corto Plazo de la Deuda Pública a Largo Plazo (c=c1+c2) | F24: =SUM(F25:F26) -> 614280699.4 | G24: =SUM(G25:G26) -> 548877782
B25: b7) Otros Derechos a Recibir Efectivo o Equivalentes a Corto Plazo | C25: 682112287.8 | D25: 799632560 | E25: c1) Porción a Corto Plazo de la Deuda Pública | F25: 614280699.4 | G25: 548877782
B26: c. Derechos a Recibir Bienes o Servicios (c=c1+c2+c3+c4+c5) | C26: =SUM(C27:C31) -> 318860347.3 | D26: =SUM(D27:D31) -> 461647153 | E26: c2) Porción a Corto Plazo de Arrendamiento Financiero | F26: 0 | G26: 0
B27: c1) Anticipo a Proveedores por Adquisición de Bienes y Prestación de Servicios a Corto Plazo | C27: 0 | D27: 0 | E27: d. Títulos y Valores a Corto Plazo | F27: 0 | G27: 0
B28: c2) Anticipo a Proveedores por Adquisición de Bienes Inmuebles y Muebles a Corto Plazo | C28: 0 | D28: 0 | E28: e. Pasivos Diferidos a Corto Plazo (e=e1+e2+e3) | F28: 0 | G28: 0
B29: c3) Anticipo a Proveedores por Adquisición de Bienes Intangibles a Corto Plazo | C29: 0 | D29: 0 | E29: e1) Ingresos Cobrados por Adelantado a Corto Plazo | F29: 0 | G29: 0
B30: c4) Anticipo a Contratistas por Obras Públicas a Corto Plazo | C30: 318860347.3 | D30: 461647153 | E30: e2) Intereses Cobrados por Adelantado a Corto Plazo | F30: 0 | G30: 0
B31: c5) Otros Derechos a Recibir Bienes o Servicios a Corto Plazo | C31: 0 | D31: 0 | E31: e3) Otros Pasivos Diferidos a Corto Plazo | F31: 0 | G31: 0
B32: d. Inventarios (d=d1+d2+d3+d4+d5) | C32: 0 | D32: 0 | E32: f. Fondos y Bienes de Terceros en Garantía y/o Administración a Corto Plazo (f=f1+f2+f3+f4+f5+f6) | F32: =SUM(F33:F38) -> 225197034 | G32: =SUM(G33:G38) -> 230452662
B33: d1) Inventario de Mercancías para Venta | C33: 0 | D33: 0 | E33: f1) Fondos en Garantía a Corto Plazo | F33: 13646383.58 | G33: 11960977
B34: d2) Inventario de Mercancías Terminadas | C34: 0 | D34: 0 | E34: f2) Fondos en Administración a Corto Plazo | F34: 211550650.4 | G34: 218491685
B35: d3) Inventario de Mercancías en Proceso de Elaboración | C35: 0 | D35: 0 | E35: f3) Fondos Contingentes a Corto Plazo | F35: 0 | G35: 0
B36: d4) Inventario de Materias Primas, Materiales y Suministros para Producción | C36: 0 | D36: 0 | E36: f4) Fondos de Fideicomisos, Mandatos y Contratos Análogos a Corto Plazo | F36: 0 | G36: 0
B37: d5) Bienes en Tránsito | C37: 0 | D37: 0 | E37: f5) Otros Fondos de Terceros en Garantía y/o Administración a Corto Plazo | F37: 0 | G37: 0
B38: e. Almacenes | C38: 582533.62 | D38: 614872 | E38: f6) Valores y Bienes en Garantía a Corto Plazo | F38: 0 | G38: 0
B39: f. Estimación por Pérdida o Deterioro de Activos Circulantes (f=f1+f2) | C39: 0 | D39: 0 | E39: g. Provisiones a Corto Plazo (g=g1+g2+g3) | F39: 0 | G39: 0
B40: f1) Estimaciones para Cuentas Incobrables por Derechos a Recibir Efectivo o Equivalentes | C40: 0 | D40: 0 | E40: g1) Provisión para Demandas y Juicios a Corto Plazo | F40: 0 | G40: 0
B41: f2) Estimación por Deterioro de Inventarios | C41: 0 | D41: 0 | E41: g2) Provisión para Contingencias a Corto Plazo | F41: 0 | G41: 0
B42: g. Otros Activos Circulantes (g=g1+g2+g3+g4) | C42: 0 | D42: 18899998 | E42: g3) Otras Provisiones a Corto Plazo | F42: 0 | G42: 0
B43: g1) Valores en Garantía | C43: 0 | D43: 18899998 | E43: h. Otros Pasivos a Corto Plazo (h=h1+h2+h3) | F43: =SUM(F44:F46) -> 595184227.9 | G43: =SUM(G44:G46) -> 903437233
B44: g2) Bienes en Garantía (excluye depósitos de fondos) | C44: 0 | D44: 0 | E44: h1) Ingresos por Clasificar | F44: 2800125.72 | G44: 2611013
B45: g3) Bienes Derivados de Embargos, Decomisos, Aseguramientos y Dación en Pago | C45: 0 | D45: 0 | E45: h2) Recaudación por Participar | F45: 453192912.7 | G45: 751182269
B46: g4) Adquisición con Fondos de Terceros | C46: 0 | D46: 0 | E46: h3) Otros Pasivos Circulantes | F46: 139191189.5 | G46: 149643951
B48: IA. Total de Activos Circulantes (IA = a + b + c + d + e + f + g) | C48: =+C10+C18+C26+C32+C38+C39+C42 -> 3997736885 | D48: =+D10+D18+D26+D32+D38+D39+D42 -> 9071762574 | E48: IIA. Total de Pasivos Circulantes (IIA = a + b + c + d + e + f + g + h) | F48: =+F10+F20+F24+F27+F28+F32+F39+F43 -> 9013388114 | G48: =+G10+G20+G24+G27+G28+G32+G39+G43 -> 8301098610
B50: Activo No Circulante | E50: Pasivo No Circulante
B51: a. Inversiones Financieras a Largo Plazo | C51: 2.467491368e+10 | D51: 24508848618 | E51: a. Cuentas por Pagar a Largo Plazo | F51: 0 | G51: 0
B52: b. Derechos a Recibir Efectivo o Equivalentes a Largo Plazo | C52: 180010314.5 | D52: 180010314 | E52: b. Documentos por Pagar a Largo Plazo | F52: 0 | G52: 0
B53: c. Bienes Inmuebles, Infraestructura y Construcciones en Proceso | C53: 1.875022186e+10 | D53: 16152510711 | E53: c. Deuda Pública a Largo Plazo | F53: 1.925997044e+10 | G53: 19874251150
B54: d. Bienes Muebles | C54: 3136449692 | D54: 3002953599 | E54: d. Pasivos Diferidos a Largo Plazo | F54: 0 | G54: 0
B55: e. Activos Intangibles | C55: 137079404.2 | D55: 125823150 | E55: e. Fondos y Bienes de Terceros en Garantía y/o en Administración a Largo Plazo | F55: 0 | G55: 0
B56: f. Depreciación, Deterioro y Amortización Acumulada de Bienes | C56: -1117944837 | D56: -1103599441 | E56: f. Provisiones a Largo Plazo | F56: 0 | G56: 0
B57: g. Activos Diferidos | C57: 32457644.67 | D57: 32457645
B58: h. Estimación por Pérdida o Deterioro de Activos no Circulantes | C58: 0 | D58: 0 | E58: IIB. Total de Pasivos No Circulantes (IIB = a + b + c + d + e + f) | F58: =SUM(F51:F57) -> 1.925997044e+10 | G58: =SUM(G51:G57) -> 19874251150
B59: i. Otros Activos no Circulantes | C59: 0 | D59: 0
E60: II. Total del Pasivo (II = IIA + IIB) | F60: =+F48+F58 -> 2.827335855e+10 | G60: =+G48+G58 -> 28175349760
B61: IB. Total de Activos No Circulantes (IB = a + b + c + d + e + f + g + h + i) | C61: =SUM(C51:C60) -> 4.579318776e+10 | D61: =SUM(D51:D60) -> 42899004596
E62: HACIENDA PÚBLICA/PATRIMONIO
B63: I. Total del Activo (I = IA + IB) | C63: =+C48+C61 -> 4.979092464e+10 | D63: =+D48+D61 -> 51970767170
E64: IIIA. Hacienda Pública/Patrimonio Contribuido (IIIA = a + b + c) | F64: =SUM(F65:F67) -> 3.470370204e+10 | G64: =SUM(G65:G67) -> 34179863229
E65: a. Aportaciones | F65: 3.469453052e+10 | G65: 34174288674
E66: b. Donaciones de Capital | F66: 0 | G66: 0
E67: c. Actualización de la Hacienda Pública/Patrimonio | F67: 9171517.96 | G67: 5574555
E69: IIIB. Hacienda Pública/Patrimonio Generado (IIIB = a + b + c + d + e) | F69: =SUM(F70:F74) -> -1.318613595e+10 | G69: =SUM(G70:G74) -> -10384445819
E70: a. Resultados del Ejercicio (Ahorro/ Desahorro) | F70: 1033307692 | G70: 1329416831
E71: b. Resultados de Ejercicios Anteriores | F71: 6707737131 | G71: 5378320300
E72: c. Revalúos | F72: 0 | G72: 0
E73: d. Reservas | F73: 0 | G73: 0
E74: e. Rectificaciones de Resultados de Ejercicios Anteriores | F74: -2.092718077e+10 | G74: -17092182950
E76: IIIC. Exceso o Insuficiencia en la Actualización de la Hacienda Pública/Patrimonio (IIIC=a+b) | F76: 0 | G76: 0
E77: a. Resultado por Posición Monetaria | F77: 0 | G77: 0
E78: b. Resultado por Tenencia de Activos no Monetarios | F78: 0 | G78: 0
E80: III. Total Hacienda Pública/Patrimonio (III = IIIA + IIIB + IIIC) | F80: =+F64+F69 -> 2.151756609e+10 | G80: =+G64+G69 -> 23795417410
E82: IV. Total del Pasivo y Hacienda Pública/Patrimonio (IV = II + III) | F82: =+F60+F80 -> 4.979092464e+10 | G82: =+G60+G80 -> 51970767170
F85: =+C63-F82 -> -0.4400100708 | G85: =+G82-D63 -> 0

Sheet Graph (hidden)
H1: FEP8Qry3
H2: Autor | I2: ADVJYNOQUIO | K2: Actualidad datos (fecha) | L2: 14:24:31
G5: Information
G6: Autor | H6: ADVJYNOQUIO | J6: Últ.actual.pantalla | K6: 18/04/2022 10:13:39
G7: Usuario actual | H7: GRPMJRIOS | J7: Fe.clave | K7: 18/04/2022
G8: Modificado por | H8: ADVIVIEYRA | J8: Hora de modificación | K8: 07/05/2020 10:37:04
G9: InfoSitio | H9: ZVRL_MP02 | J9: Actualidad de datos | K9: 25/01/2022 14:24:31
G10: Nombre técnico query | H10: ZFI_VRL_MP02_Q008A | J10: Actualidad datos (fecha) | K10: 25/01/2022
G11: Descripción query | H11: Estado de Situacion Financiera Det A | J11: Actualidad datos (fecha) | K11: 14:24:31
C14: Filter
C15: Área funcional
C16: Centro de beneficio
C17: Centro de coste
C18: Cuenta de mayor
C19: Ejercicio/Período
C20: Ejercicio
C21: Estruct.
C22: InfoSitio
C23: Período contable
C24: Ratios
